Cogmind - Beta 10.2 @@@ ROGUE MODE // 2020.12.08 @ 21:58:00 Player: motadol Result: Destroyed by Y-45 Defender with Heavy Assault Rifle Performance ------------- Evolutions (1) 500 Regions Visited (3) 600 Robots Destroyed (39) 195 Value Destroyed (902) 902 Prototype IDs (4) 80 Alien Tech Used (0) 0 Bonus (93) 93 TOTAL SCORE: 2370 Bonus ------- Follower Combat Kills 93 Cogmind --------- Core Integrity 0/400 Matter 226/300 Energy 100/100 System Corruption 0% Temperature Cool (9) Movement Core (300) Ox5 Location -9/Materials Parts ------- > --- POWER (1) -------- (None) > --- PROPULSION (4) --- (None) > --- UTILITY (2) ------ Large Storage Unit Signal Interpreter > --- WEAPON (2) ------- (None) > --- INVENTORY (10) --- Ion Engine Makeshift Power Source VTOL Module Medium Storage Unit High-capacity Matter Pod (200) Sensor Array Mini Grenade Launcher Peak State ------------ > --- POWER ------------ Light Nuclear Core > --- PROPULSION ------- Aluminum Leg Aluminum Leg Aluminum Leg > --- UTILITY ---------- Large Storage Unit Signal Interpreter > --- WEAPON ----------- Beamcaster Heavy Hammer > --- INVENTORY -------- Ion Engine Makeshift Power Source VTOL Module Medium Storage Unit High-capacity Matter Pod Sensor Array Mini Grenade Launcher [Rating: 16] Favorites ----------- Power Ion Engine Engine Ion Engine Power Core Light Nuclear Core Propulsion Aluminum Leg Leg Aluminum Leg Wheel Wheel Flight Unit Flight Unit Utility Signal Interpreter Device Sensor Array Storage Medium Storage Unit Processor Signal Interpreter Weapon Light Assault Rifle Energy Gun Medium Laser Energy Cannon Beam Cannon Ballistic Gun Light Assault Rifle Ballistic Cannon Light Cannon Launcher Grenade Launcher Impact Weapon Heavy Hammer Build | -11 -10 -10 -9 ------- Run | Scr Mat Min Mat Slots Evolved 2 | . . . 2 Power . | . . . . Propulsion 2 | . . . 2 Utility . | . . . . Weapon . | . . . . Parts Attached 74 | 7 24 17 26 Power 9 | 1 2 2 4 Engine 8 | 1 2 2 3 Core 1 | . . . 1 Reactor . | . . . . Propulsion 21 | 2 9 4 6 Treads . | . . . . Leg 18 | 2 9 3 4 Wheel 1 | . . 1 . Hover . | . . . . Flight 2 | . . . 2 Utility 6 | 2 3 . 1 Device 1 | . 1 . . Storage 4 | 2 1 . 1 Processor 1 | . 1 . . Hackware . | . . . . Protection . | . . . . Artifact . | . . . . Weapon 38 | 2 10 11 15 Energy Gun 6 | 2 . . 4 Energy Cannon 4 | . 3 . 1 Ballistic Gun 8 | . 1 5 2 Ballistic Cannon 6 | . . 1 5 Launcher 9 | . 4 4 1 Special Weapon . | . . . . Impact Weapon 5 | . 2 1 2 Slashing Weapon . | . . . . Piercing Weapon . | . . . . Special Melee Weapon . | . . . . Unidentified Prototypes . | . . . . Parts Lost 18 | . 1 3 14 Power 2 | . . . 2 Propulsion 8 | . 1 1 6 Utility . | . . . . Weapon 8 | . . 2 6 Highest Loss Streak 8 | . 1 1 8 Average Slot Usage (%) 93 | . 96 98 84 Engine 12 | . 14 14 7 Leg 26 | . 27 23 26 Flight 2 | . . . 7 Device 2 | . 5 . . Storage 14 | . 16 14 11 Processor 9 | . 6 14 11 Energy Gun 2 | . 3 . 2 Energy Cannon 3 | . 7 . . Ballistic Gun 7 | . 2 15 9 Ballistic Cannon 1 | . . 1 4 Launcher 7 | . 10 8 . Impact Weapon 1 | . . 2 1 Naked Turns . | . . . . Heaviest Build 29 | 15 20 18 29 Greatest Support 45 | 20 20 25 45 Greatest Overweight (x) 1 | 1 1 1 . Average Overweight (x) . | . . . . Largest Inventory Capacity 10 | 8 8 8 10 Average Capacity 8 | 7 7 8 9 Most Carried 10 | 6 8 8 10 Average Carried 7 | 2 7 7 8 Final Capacity 10 | 8 8 8 10 Final Carried 8 | 6 8 8 7 Class Distribution -------------------- 65% | Mutant 34% | Scavenger-Mutant Dominant Class ---------------- Mutant | -10/Materials Scavenger-Mutant | -10/Mines Scavenger-Mutant | -9/Materials Resources | -11 -10 -10 -9 ----------- Run | Scr Mat Min Mat Matter Collected 1335 | 267 445 315 308 Remotely . | . . . . Salvage Created 1005 | 100 464 230 211 Parts 59 | 1 30 17 11 Haulers Intercepted . | . . . . Recyclers Shooed 2 | . 1 1 . Parts Field Recycled . | . . . . Retrieved Matter . | . . . . Parts Self-Destructed . | . . . . Prevented . | . . . . Kills | -11 -10 -10 -9 ------- Run | Scr Mat Min Mat Combat Hostiles Destroyed 28 | . 7 13 8 Guns 10 | . 4 2 4 Cannons 7 | . . 5 2 AOE 10 | . 3 5 2 Classes Destroyed 8 | 1 4 2 1 Worker 1 | . . 1 . Builder 3 | . 3 . . Tunneler 1 | . 1 . . Recycler 4 | 1 2 1 . Watcher 2 | . 2 . . Swarmer 12 | . . 11 1 Grunt 15 | . 7 2 6 Sentry 1 | . . . 1 Best Kill Streak 5 | 1 5 4 4 Combat Bots Only 4 | . 2 3 4 Max Kills in Single Turn 3 | 1 2 3 1 Gunslinging . | . . . . Exploded 2 | . 1 2 1 Melee . | . . . . Uniques/NPCs Destroyed . | . . . . Combat | -11 -10 -10 -9 -------- Run | Scr Mat Min Mat Damage Taken 2373 | . 598 430 1345 Core 583 | . 119 52 412 Absorbed by Shields . | . . . . Core Remaining (%) 65 | 100 . 31 . Volleys Fired 121 | 4 45 40 32 Largest 2 | 1 2 2 2 Hottest 130 | 50 100 60 130 Shots Fired 187 | 4 69 54 60 Gun 137 | 4 54 38 41 Cannon 36 | . 8 13 15 Launcher 14 | . 7 3 4 Special . | . . . . Kinetic 97 | . 11 46 40 Thermal 76 | 4 51 5 16 Explosive 14 | . 7 3 4 Electromagnetic . | . . . . Robot Hit Streak 8 | 2 8 5 7 Robot Miss Streak 9 | 2 5 9 6 Penetration Max . | . . . . Secondary Targets . | . . . . Shots Hit Robots 128 | 2 45 26 55 Core Hits 74 | 2 27 22 23 Critical Hits . | . . . . Critical Kills . | . . . . Critical Parts Destroyed . | . . . . Melee Attacks 35 | . . 4 31 Impact 35 | . . 4 31 Slashing . | . . . . Piercing . | . . . . Sneak Attacks . | . . . . Combat Hostiles . | . . . . Follow-up Attacks . | . . . . Damage Inflicted 2952 | 24 980 770 1178 Guns 816 | 24 422 142 228 Cannons 392 | . 106 164 122 Explosions 1187 | . 452 440 295 Melee 555 | . . 24 531 Ramming 2 | . . . 2 Kinetic 497 | . 62 219 216 Thermal 904 | 24 555 191 134 Explosive 994 | . 363 336 295 Electromagnetic . | . . . . Impact 555 | . . 24 531 Slashing . | . . . . Piercing . | . . . . Highest Corruption . | . . . . Average Corruption . | . . . . Corruption Purged . | . . . . Overload Shots . | . . . . Overflow Damage 14 | . 3 4 7 Projectiles 3 | . 3 . . Explosions . | . . . . Melee 11 | . . 4 7 Knockbacks 2 | . . . 2 Impact . | . . . . Kinetic 2 | . . . 2 Secondary . | . . . . Self-Inflicted Damage 164 | . 116 48 . Shots 3 | . 2 1 . Rammed 5 | . . . 5 Targets Rammed 5 | . . . 5 Kicked . | . . . . Crushed . | . . . . Highest Temperature 443 | . 443 100 170 Average Temperature 112 | . 163 30 51 Received Heat Transfer 732 | . 246 36 450 Effects 7 | . 7 . . Shutdowns 3 | . 3 . . Energy Bleed 2 | . 2 . . Matter Decay 1 | . 1 . . Short Circuit 1 | . 1 . . Siege Activations . | . . . . Robots Corrupted . | . . . . Combat Hostiles . | . . . . Parts Fried 1 | . . 1 . Impact Corruptions 2 | . . 1 1 Robots Melted . | . . . . Combat Hostiles . | . . . . Parts Melted 3 | . 3 . . Heat Transferred 2087 | 74 1395 285 333 Parts Sabotaged . | . . . . Parts Stolen . | . . . . Parts Stripped . | . . . . Power Chain Reactions . | . . . . Missiles Intercepted . | . . . . Alert | -11 -10 -10 -9 ------- Run | Scr Mat Min Mat Peak Influence 308 | 5 160 308 165 Initial 78 | . 3 3 78 Average 81 | 4 60 147 78 Maximum Alert Level 1 | . . 1 . Low Security (%) 92 | 100 100 67 100 Level 1 7 | . . 32 . Level 2 . | . . . . Level 3 . | . . . . Level 4 . | . . . . Level 5 . | . . . . High Security . | . . . . Max Security . | . . . . Squads Dispatched 2 | . 1 . 1 Investigation . | . . . . Extermination . | . . . . Reinforcement 2 | . 1 . 1 Assault . | . . . . Garrison . | . . . . Intercept . | . . . . Construction Impeded . | . . . . Haulers Reinforced . | . . . . Stealth | -11 -10 -10 -9 --------- Run | Scr Mat Min Mat Distress Signals 1 | . . . 1 Communications Jammed . | . . . . Distress Signals . | . . . . Times Spotted 46 | . 11 16 19 Peak Tracking Total 4 | . 2 3 4 Tactical Retreats . | . . . . Traps | -11 -10 -10 -9 ------- Run | Scr Mat Min Mat Traps Triggered 6 | . 6 . . Indirectly . | . . . . Trap Hack Attempts . | . . . . Triggered . | . . . . Disarmed . | . . . . Reprogrammed . | . . . . Reused . | . . . . Traps Extracted . | . . . . Installed . | . . . . Triggered . | . . . . Machines | -11 -10 -10 -9 ---------- Run | Scr Mat Min Mat Machines Disabled 7 | . 4 2 1 Max in Single Turn 3 | . 3 1 1 Machines Sabotaged . | . . . . Garrisons Compromised . | . . . . Overloaded Fab Kills . | . . . . Fab Network Shutdowns . | . . . . Hacking | -11 -10 -10 -9 --------- Run | Scr Mat Min Mat Machines Accessed 10 | . 7 . 3 Terminals 9 | . 6 . 3 Fabricators . | . . . . Repair Stations 1 | . 1 . . Recycling Units . | . . . . Scanalyzers . | . . . . Garrison Access . | . . . . Total Hacks 32 | . 20 . 12 Successful 15 | . 9 . 6 Failed 17 | . 11 . 6 Catastrophic 2 | . 2 . . Database Lockouts . | . . . . Manual 3 | . 3 . . Terminals 26 | . 14 . 12 Fabricators . | . . . . Repair Stations 6 | . 6 . . Recycling Units . | . . . . Scanalyzers . | . . . . Garrison Access . | . . . . Terminal Hacks 12 | . 6 . 6 Record 4 | . 3 . 1 Robot Analysis 1 | . . . 1 Prototype ID Bank 2 | . 1 . 1 Alert Level 1 | . . . 1 Unreport Threat 1 | . . . 1 Locate Traps 2 | . 1 . 1 Zone Layout 1 | . 1 . . Fabricator Hacks . | . . . . Repair Station Hacks 3 | . 3 . . Scan Component 1 | . 1 . . Repair 1 | . 1 . . Refit 1 | . 1 . . Recycling Unit Hacks . | . . . . Scanalyzer . | . . . . Garrison Access Hacks . | . . . . Unauthorized Hacks . | . . . . Terminals . | . . . . Fabricators . | . . . . Repair Stations . | . . . . Recycling Units . | . . . . Scanalyzers . | . . . . Garrison Access . | . . . . Data Cores Recovered . | . . . . Used . | . . . . Hacking Detections 10 | . 7 . 3 Full Trace Events . | . . . . Feedback Events . | . . . . Feedback Blocked . | . . . . Robot Schematics Acquired . | . . . . Robots Built . | . . . . Matter . | . . . . Time . | . . . . Total Robot Build Rating . | . . . . Part Schematics Acquired . | . . . . Parts Built . | . . . . Matter . | . . . . Time . | . . . . Total Part Build Rating . | . . . . Parts Repaired 1 | . 1 . . Time 26 | . 26 . . Parts Recycled . | . . . . Recycled Matter . | . . . . Retrieved Matter . | . . . . Retrieved Components . | . . . . Parts Scanalyzed . | . . . . Part Schematics Acquired . | . . . . Parts Damaged . | . . . . Bothacking | -11 -10 -10 -9 ------------ Run | Scr Mat Min Mat Used RIF Installer . | . . . . Robots Hacked . | . . . . Non-combat . | . . . . Combat . | . . . . Robot Hacks Applied . | . . . . Relay Couplers Released . | . . . . Robots Rewired . | . . . . Allies Hacked . | . . . . Hacks Repelled . | . . . . Allies | -11 -10 -10 -9 -------- Run | Scr Mat Min Mat Total Allies 2 | . . 2 . Largest Group 2 | . . 2 2 Highest-Rated Group 50 | . . 50 50 Highest-Rated Ally 31 | . . 31 31 Total Orders . | . . . . Ally Attacks 28 | . . 8 20 Total Damage 409 | . . 177 232 Kills 8 | . . 3 5 Allies Corrupted . | . . . . Allies Melted . | . . . . Intel | -11 -10 -10 -9 ------- Run | Scr Mat Min Mat Robot Analysis Total 1 | . . . 1 Derelict Logs Recovered . | . . . . Drone Launches . | . . . . Drone Recoveries . | . . . . Exploration | -11 -10 -10 -9 ------------- Run | Scr Mat Min Mat Turns Passed 2369 | 81 1116 505 667 Spaces Moved 1437 | 48 752 305 332 Core 5 | 5 . . . Treads . | . . . . Legs 1351 | 43 752 224 332 Wheels 81 | . . 81 . Hover . | . . . . Flight . | . . . . Fastest Speed 50 | 50 120 90 120 Average Speed 118 | 116 120 113 120 Slowest Speed 150 | 150 150 150 120 Overloaded Moves . | . . . . Propulsion Burnouts . | . . . . Robots Hopped . | . . . . Cave-ins Triggered . | . . . . Exploration Rate (%) 49 | 4 96 64 34 Regions Visited 3 Branch Regions 1 Pre-discovered Areas . | . . . . Known Exits Taken 2 | . 1 1 . Unknown Exits Taken 1 | 1 . . . Scrap Searched 1 | . . 1 . Spaces Dug . | . . . . Terrain Destroyed 96 | . 16 54 26 Melee . | . . . . Projectile 1 | . . 1 . AOE 95 | . 16 53 26 Terrain Rammed . | . . . . Walls Destroyed . | . . . . Machines Disabled . | . . . . Actions | -11 -10 -10 -9 --------- Run | Scr Mat Min Mat Total 1847 | 66 897 411 473 Wait 104 | . 43 31 30 Move 1434 | 47 751 304 332 Hop . | . . . . Pick Up 41 | 8 19 7 7 Fast Attach 16 | 5 3 1 7 Attach 18 | 2 7 2 7 Detach 1 | . . . 1 Swap 40 | . 14 14 12 Drop 32 | . 15 8 9 Fire 121 | 4 45 40 32 Melee 35 | . . 4 31 Ram 5 | . . . 5 Kick . | . . . . Crush . | . . . . Escape Stasis . | . . . . Rewire . | . . . . Trap . | . . . . Miscellaneous . | . . . . Route ------- -11/Scrapyard -10/Materials (discovered 4 exits: *Mat x3 / *Min) -10/Mines (discovered 2 exits: *Mat x2) -9/Materials History --------- Turn | Location | Event 24 | -11/Scrapyard | Discovered new exit (range 15) 82 | -11/Scrapyard | Entered Materials 243 | -10/Materials | Discovered new exit (range 10) 515 | -10/Materials | Repaired Aluminum Leg? 638 | -10/Materials | Build established: Mutant 674 | -10/Materials | Discovered new exit (range 3) 690 | -10/Materials | Identified exit to Materials 771 | -10/Materials | Discovered new exit (range 14) 788 | -10/Materials | Identified exit to Mines 1028 | -10/Materials | Discovered exit to Materials (range 9) 1198 | -10/Materials | Entered Mines 1208 | -10/Mines | Core integrity fell below 50% 1226 | -10/Mines | Met a Derelict bent on vengeance 1462 | -10/Mines | Found a hidden stash of uninstalled traps 1573 | -10/Mines | Discovered exit to Materials (range 6) 1691 | -10/Mines | Discovered exit to Materials (range 8) 1703 | -10/Mines | Entered Materials 1703 | -9/Materials | Accompanied by 2 allies 1703 | -9/Materials | Evolved 2 slots: Propulsion x2 1708 | -9/Materials | Led the pair of lost Derelicts to an unsafe place 1713 | -9/Materials | Build established: Scavenger-Mutant 2222 | -9/Materials | Lost 6 parts (1p2n3w) 2347 | -9/Materials | Core integrity fell below 50% 2362 | -9/Materials | Core integrity fell below 20% 2370 | -9/Materials | Destroyed by Y-45 Defender with Heavy Assault Rifle Last Messages --------------- 02192_ U-05 Engineer lays Concrete. 02193_ Y-45 Defender destroyed. 02194_ U-05 Engineer lays Concrete. 02197_ Acquired Aluminum Leg. 02220_ Acquired Hvy. Hammer. 02227_ K-01 Serf collects debris. 02229_ R-06 Scavenger collects Lgt. Ion Engine. 02230_ K-01 Serf collects debris. 02252_ Particle Gun destroyed. 02252_ Carbon-fiber Leg destroyed. 02276_ Beamcaster destroyed. 02298_ Aluminum Leg destroyed. 02304_ Lgt. Nuclear Core destroyed. 02310_ Aluminum Leg destroyed. 02327_ Destroyed Beam Rifle. 02327_ Y-45 Defender system corrupted by crushing effect. 02332_ Y-45 Defender IFF system glitched. 02334_ Y-45 Defender misfires. 02354_ Hvy. Hammer destroyed. 02357_ Slammed into Y-45 Defender. Map ----- +----------------------------------------------------+ | ?????????????????????????????? | | ?????????????????????????????? | | ?????????????????????????????? | | ?????????????????????????????? | | ?????????????????????????????? | | ?????????????????????????????? | | ?????????????????????????????? | | ?????????????????????????????? | | ?????????????????????????????? | | ?????????????????????????????? | | ?????????????????????????????? | | ?????????????????????????????? | | ?????????????????????????????? | | ?????????????????????????????? | | ?????????????????????????????? | | ?????????????????????????????? | | ?????????????????????????????? | | ?????????????????????????????? | | ???#+#???????????????????????? | | ??? ???????????????????????? | | ??? ???????????????????????? | | ??? ???????????????????????? | | ???# #???????????????????????? | | ???# #????????????????????# ?? | | ???#Y########?????????????# #? | | ???# @Y +?????????????# #? | | ??##+## #####?????????????# #? | | ?# # #?????????????????# #? | | ?# # #######+########### #? | | ?# # ## | | ?# # | | ?# /]# | | ?# / # | | ?# # | | ?#! ####### | | ?# #?????# | | ?######????## | | ???????????# | | ???????????# | | ???????????# | | ???????????# | | ???????????# ##############+## | | ???????????# #?????# # | | ???????????#+#####?# # | | ???????????# #?# # | | ???????##### #?# # | | ???????# + #?########### | | ???????# ### """ #???????????? | | ???????# #?# """ #???????????? | | ???????# #?# """ #???????????? | +----------------------------------------------------+ Best States ------------- Heat Dissipation 28 Energy Generation 14 Energy Capacity 250 Matter Stores 300 Matter Capacity 300 Sight Range 16 Robot Scan Range 10 Terrain Scan Density 10 Evasion (%) 42 Item Schematics ----------------- None Robot Schematics ------------------ None Fabricated ------------ Nothing Alien Tech Used ----------------- None Achievements -------------- Everything Is Under Control Part-time Mechanic Challenges ------------ None Game ------ Seed DisposableWarpClaw Manual? 0 Play Time 01:07:43 Cumulative 9.4 hours Start 2020.12.06 @ 16:16:50 End 2020.12.08 @ 21:58:00 Sessions 9 Manual Loads 0 Difficulty Rogue Special Mode None Game No. 5 Rogue 5 Adventurer 0 Explorer 0 Win Type - Total 0 Types 0/0/0/0/0/0/0/0/0 Lore% 12 Gallery% 11 Achievement% 9 Wizard Run 0 Options --------- ASCII 0 Keyboard 0 Movement Numpad Keybinds 0 Fullscreen 2 Font 18/SmallcapsGlow Map View 76x50 Tactical HUD 1 Map Filters NONE Filters NONE Steam 1 RUN: dd62e9f2-7d17-439c-b396-58f6735da40f